[Event "Live Chess"]
[Site "Chess.com"]
[Date "2024.06.02"]
[Round "-"]
[White "KeithArkell"]
[Black "grillage"]
[Result "1-0"]
[WhiteElo "2436"]
[BlackElo "1867"]
[TimeControl "300"]
[EndTime "20:46:47 PDT"]
[Termination "KeithArkell won on time"]

1. d4 {[%clk 0:04:57.5]} 1... e6 {[%clk 0:04:58.1]} 2. Nf3 {[%clk 0:04:45.9]}
2... Nf6 {[%clk 0:04:50.1]} 3. Bg5 {[%clk 0:04:43.8]} 3... Be7 {[%clk
0:04:47.7]} 4. c4 {[%clk 0:04:42.6]} 4... O-O {[%clk 0:04:40.1]} 5. Nc3 {[%clk
0:04:41.5]} 5... b6 {[%clk 0:04:30.3]} 6. g3 {[%clk 0:04:40]} 6... Bb7 {[%clk
0:04:29.4]} 7. Bg2 {[%clk 0:04:39.4]} 7... d6 {[%clk 0:04:28.5]} 8. O-O {[%clk
0:04:38.6]} 8... Nbd7 {[%clk 0:04:27.6]} 9. Qc2 {[%clk 0:04:37.6]} 9... h6
{[%clk 0:04:24.5]} 10. Bxf6 {[%clk 0:04:36.7]} 10... Nxf6 {[%clk 0:04:23.6]} 11.
e4 {[%clk 0:04:35.6]} 11... c5 {[%clk 0:04:14.2]} 12. e5 {[%clk 0:04:33.7]}
12... dxe5 {[%clk 0:04:11]} 13. dxe5 {[%clk 0:04:32.9]} 13... Nd7 {[%clk
0:04:07.4]} 14. Rad1 {[%clk 0:04:28.3]} 14... Qc7 {[%clk 0:04:06.8]} 15. Nb5
{[%clk 0:04:26.7]} 15... Qc8 {[%clk 0:03:59.8]} 16. Nd6 {[%clk 0:04:22.4]} 16...
Bxd6 {[%clk 0:03:56.9]} 17. exd6 {[%clk 0:04:21.9]} 17... Rd8 {[%clk 0:03:34.3]}
18. Rd2 {[%clk 0:04:21]} 18... Bc6 {[%clk 0:03:27.5]} 19. Rfd1 {[%clk
0:04:19.6]} 19... Qb7 {[%clk 0:03:26.3]} 20. Nh4 {[%clk 0:04:18.2]} 20... Bxg2
{[%clk 0:03:22.9]} 21. Nxg2 {[%clk 0:04:18.1]} 21... e5 {[%clk 0:03:11]} 22. Ne3
{[%clk 0:04:16.5]} 22... Nf6 {[%clk 0:03:00]} 23. Nf5 {[%clk 0:04:13.4]} 23...
Rd7 {[%clk 0:02:57.6]} 24. Re2 {[%clk 0:04:05.4]} 24... Re8 {[%clk 0:02:54]} 25.
Rde1 {[%clk 0:04:03.8]} 25... Qf3 {[%clk 0:02:51.8]} 26. Ne7+ {[%clk 0:04:00.4]}
26... Kf8 {[%clk 0:02:43.1]} 27. Re3 {[%clk 0:03:56.6]} 27... Qh5 {[%clk
0:02:38.5]} 28. Rxe5 {[%clk 0:03:55.6]} 28... Qh3 {[%clk 0:02:35.4]} 29. Qf5
{[%clk 0:03:33.6]} 29... Qxf5 {[%clk 0:02:10]} 30. Nxf5 {[%clk 0:03:28.5]} 30...
Rxe5 {[%clk 0:02:06.8]} 31. Rxe5 {[%clk 0:03:27.4]} 31... g6 {[%clk 0:02:02.9]}
32. Ne3 {[%clk 0:02:36.8]} 32... Rxd6 {[%clk 0:01:58.7]} 33. Nd5 {[%clk
0:02:34.8]} 33... Nxd5 {[%clk 0:01:56.5]} 34. cxd5 {[%clk 0:02:33.3]} 34... f6
{[%clk 0:01:48.3]} 35. Re2 {[%clk 0:02:31.8]} 35... Rxd5 {[%clk 0:01:45.7]} 36.
a3 {[%clk 0:02:30.1]} 36... Kf7 {[%clk 0:01:43.6]} 37. Kg2 {[%clk 0:02:29.4]}
37... f5 {[%clk 0:01:33.5]} 38. h4 {[%clk 0:02:23.2]} 38... h5 {[%clk
0:01:29.3]} 39. Rc2 {[%clk 0:02:12.2]} 39... Kf6 {[%clk 0:01:22.8]} 40. b4
{[%clk 0:02:09]} 40... cxb4 {[%clk 0:01:18.8]} 41. axb4 {[%clk 0:02:07.9]} 41...
Rb5 {[%clk 0:01:14.1]} 42. Rc6+ {[%clk 0:02:04.8]} 42... Kg7 {[%clk 0:01:11.7]}
43. Rc7+ {[%clk 0:02:03.4]} 43... Kh6 {[%clk 0:01:09.7]} 44. Rxa7 {[%clk
0:02:02.2]} 44... Rxb4 {[%clk 0:01:08.7]} 45. Rb7 {[%clk 0:02:01.5]} 45... Rb3
{[%clk 0:01:03.7]} 46. Rb8 {[%clk 0:01:57.9]} 46... b5 {[%clk 0:01:02.2]} 47.
Rb7 {[%clk 0:01:55.2]} 47... b4 {[%clk 0:01:00.8]} 48. Kf1 {[%clk 0:01:49.4]}
48... Rb1+ {[%clk 0:01:00.3]} 49. Ke2 {[%clk 0:01:48.7]} 49... b3 {[%clk
0:00:59.8]} 50. Ke3 {[%clk 0:01:47.9]} 50... b2 {[%clk 0:00:58.8]} 51. Kf4
{[%clk 0:01:47.2]} 51... Rc1 {[%clk 0:00:42.2]} 52. Rxb2 {[%clk 0:01:45.7]}
52... Rc4+ {[%clk 0:00:41.7]} 53. Ke5 {[%clk 0:01:44.4]} 53... Re4+ {[%clk
0:00:39.5]} 54. Kf6 {[%clk 0:01:43.5]} 54... Re8 {[%clk 0:00:34.3]} 55. Rb6
{[%clk 0:01:41.1]} 55... Rf8+ {[%clk 0:00:32.9]} 56. Ke7 {[%clk 0:01:40]} 56...
Rc8 {[%clk 0:00:27.6]} 57. Rb2 {[%clk 0:01:35.7]} 57... Rc7+ {[%clk 0:00:22.5]}
58. Kd6 {[%clk 0:01:34.9]} 58... Ra7 {[%clk 0:00:19.9]} 59. Rc2 {[%clk
0:01:24.3]} 59... Ra6+ {[%clk 0:00:19.1]} 60. Kd5 {[%clk 0:01:23.8]} 60... Ra5+
{[%clk 0:00:17.8]} 61. Kd4 {[%clk 0:01:21.1]} 61... Ra7 {[%clk 0:00:17.1]} 62.
Rc3 {[%clk 0:01:13.5]} 62... Re7 {[%clk 0:00:16.5]} 63. Kd3 {[%clk 0:01:11.3]}
63... Re1 {[%clk 0:00:15.1]} 64. Rc8 {[%clk 0:01:07.5]} 64... Re7 {[%clk
0:00:13.9]} 65. Rh8+ {[%clk 0:01:05.8]} 65... Kg7 {[%clk 0:00:13.1]} 66. Rb8
{[%clk 0:01:04.2]} 66... Re4 {[%clk 0:00:11.1]} 67. f3 {[%clk 0:00:59.2]} 67...
Kf6 {[%clk 0:00:10.5]} 68. fxe4 {[%clk 0:00:58]} 1-0

[Event "Live Chess"]
[Site "Chess.com"]
[Date "2024.06.02"]
[Round "-"]
[White "booktrunk"]
[Black "ShanthamGrarks"]
[Result "0-1"]
[WhiteElo "1506"]
[BlackElo "1921"]
[TimeControl "300"]
[EndTime "20:46:51 PDT"]
[Termination "ShanthamGrarks won by resignation"]

1. d4 {[%clk 0:04:54.1]} 1... d5 {[%clk 0:04:41]} 2. Nc3 {[%clk 0:04:51.5]} 2...
c6 {[%clk 0:04:40.5]} 3. a3 {[%clk 0:04:50.6]} 3... Nf6 {[%clk 0:04:39.4]} 4. g3
{[%clk 0:04:47.6]} 4... g6 {[%clk 0:04:37.6]} 5. Bg2 {[%clk 0:04:47.1]} 5... Bg7
{[%clk 0:04:37]} 6. h4 {[%clk 0:04:42.3]} 6... O-O {[%clk 0:04:34.7]} 7. e3
{[%clk 0:04:41.2]} 7... h5 {[%clk 0:04:32.5]} 8. Bf3 {[%clk 0:04:30.8]} 8... Bg4
{[%clk 0:04:30]} 9. Bxg4 {[%clk 0:04:29]} 9... Nxg4 {[%clk 0:04:29]} 10. Qf3
{[%clk 0:04:21.3]} 10... Nd7 {[%clk 0:04:24]} 11. Bd2 {[%clk 0:04:20]} 11... e5
{[%clk 0:04:21.9]} 12. dxe5 {[%clk 0:04:14.8]} 12... Ndxe5 {[%clk 0:04:20.4]}
13. Qe2 {[%clk 0:04:12.8]} 13... Nc4 {[%clk 0:04:19.2]} 14. O-O-O {[%clk
0:04:08.4]} 14... Qb6 {[%clk 0:04:17.8]} 15. b3 {[%clk 0:04:05]} 15... Nxa3
{[%clk 0:04:13.2]} 16. Kb2 {[%clk 0:04:03.9]} 16... Nc4+ {[%clk 0:04:10.6]} 17.
Kc1 {[%clk 0:03:52.9]} 17... Nxd2 {[%clk 0:04:09.1]} 18. Kxd2 {[%clk 0:03:45]}
18... Qb4 {[%clk 0:04:06.2]} 19. Ke1 {[%clk 0:03:16.1]} 19... Bxc3+ {[%clk
0:04:00.8]} 20. Kf1 {[%clk 0:03:16]} 20... Rae8 {[%clk 0:03:56.2]} 21. Nf3
{[%clk 0:03:15]} 21... d4 {[%clk 0:03:50.8]} 22. Nxd4 {[%clk 0:03:13]} 22...
Bxd4 {[%clk 0:03:48.2]} 23. Rxd4 {[%clk 0:03:12.9]} 23... Qc3 {[%clk 0:03:32]}
24. Kg2 {[%clk 0:03:09.8]} 24... Rxe3 {[%clk 0:03:24.9]} 25. fxe3 {[%clk
0:03:08.3]} 25... Nxe3+ {[%clk 0:03:23.6]} 26. Kh3 {[%clk 0:03:05.6]} 26... Qxd4
{[%clk 0:03:21.5]} 27. Re1 {[%clk 0:03:04.3]} 27... Ng4 {[%clk 0:03:17.6]} 28.
Kg2 {[%clk 0:02:50]} 28... Qd5+ {[%clk 0:03:15.4]} 29. Kh3 {[%clk 0:02:47.7]}
29... Qf5 {[%clk 0:03:08.4]} 30. Rf1 {[%clk 0:02:42.7]} 30... Qc8 {[%clk
0:02:59.9]} 31. Kg2 {[%clk 0:02:39.6]} 31... Re8 {[%clk 0:02:58.9]} 32. Qf3
{[%clk 0:02:37.2]} 32... Ne3+ {[%clk 0:02:54.5]} 0-1

[Event "Live Chess"]
[Site "Chess.com"]
[Date "2024.06.02"]
[Round "-"]
[White "NeilDruggan73"]
[Black "Delacorta"]
[Result "0-1"]
[WhiteElo "1766"]
[BlackElo "1536"]
[TimeControl "300"]
[EndTime "20:47:28 PDT"]
[Termination "Delacorta won by resignation"]

1. d4 {[%clk 0:04:57.4]} 1... e6 {[%clk 0:04:59.2]} 2. Nf3 {[%clk 0:04:53.3]}
2... f5 {[%clk 0:04:58.1]} 3. c4 {[%clk 0:04:50.4]} 3... Nf6 {[%clk 0:04:57.2]}
4. a3 {[%clk 0:04:47.9]} 4... c6 {[%clk 0:04:56.5]} 5. Bd2 {[%clk 0:04:43]} 5...
d5 {[%clk 0:04:54.9]} 6. c5 {[%clk 0:04:37.6]} 6... Be7 {[%clk 0:04:53.2]} 7.
Nc3 {[%clk 0:04:33.2]} 7... O-O {[%clk 0:04:51.2]} 8. b4 {[%clk 0:04:30]} 8...
a6 {[%clk 0:04:49.3]} 9. Bf4 {[%clk 0:04:25.8]} 9... Bd7 {[%clk 0:04:47.7]} 10.
e3 {[%clk 0:04:24.4]} 10... Be8 {[%clk 0:04:44.4]} 11. Na4 {[%clk 0:04:20]}
11... Nbd7 {[%clk 0:04:38.8]} 12. Ne5 {[%clk 0:04:16.4]} 12... Bh5 {[%clk
0:04:30.3]} 13. f3 {[%clk 0:04:11.6]} 13... Nxe5 {[%clk 0:04:13.4]} 14. Bxe5
{[%clk 0:03:53.2]} 14... Nd7 {[%clk 0:04:12.2]} 15. Bd6 {[%clk 0:03:41.7]} 15...
Bxd6 {[%clk 0:04:09.1]} 16. cxd6 {[%clk 0:03:40.6]} 16... Nf6 {[%clk 0:04:03.6]}
17. Nc5 {[%clk 0:03:32.8]} 17... Qxd6 {[%clk 0:03:45.8]} 18. Nxb7 {[%clk
0:03:31.3]} 18... Qe7 {[%clk 0:03:44.6]} 19. Nc5 {[%clk 0:03:29.5]} 19... a5
{[%clk 0:03:40.4]} 20. Be2 {[%clk 0:03:20]} 20... axb4 {[%clk 0:03:37.2]} 21.
axb4 {[%clk 0:03:18.7]} 21... Rxa1 {[%clk 0:03:34.6]} 22. Qxa1 {[%clk
0:03:18.2]} 22... g5 {[%clk 0:03:20.1]} 23. O-O {[%clk 0:03:15.7]} 23... g4
{[%clk 0:03:18.6]} 24. Qa6 {[%clk 0:03:08.5]} 24... gxf3 {[%clk 0:03:16.3]} 25.
Bxf3 {[%clk 0:03:02.3]} 25... Bxf3 {[%clk 0:03:14.6]} 26. gxf3 {[%clk
0:02:58.8]} 26... Rf7 {[%clk 0:03:02.5]} 27. Kf2 {[%clk 0:02:49.7]} 27... Rg7
{[%clk 0:02:59.8]} 28. Qxc6 {[%clk 0:02:47]} 28... Nh5 {[%clk 0:02:57.4]} 29.
Qc8+ {[%clk 0:02:38.2]} 29... Kf7 {[%clk 0:02:51.5]} 30. Rg1 {[%clk 0:02:26.5]}
30... Qh4+ {[%clk 0:02:47.3]} 31. Kf1 {[%clk 0:02:02.6]} 31... Qh3+ {[%clk
0:02:46.1]} 32. Ke2 {[%clk 0:01:58.6]} 32... Qxh2+ {[%clk 0:02:43.6]} 33. Kd3
{[%clk 0:01:57.2]} 33... Qxg1 {[%clk 0:02:39.8]} 34. Qxe6+ {[%clk 0:01:51.8]}
34... Kf8 {[%clk 0:02:29.5]} 35. Nd7+ {[%clk 0:01:44.5]} 35... Rxd7 {[%clk
0:02:26.3]} 36. Qxd7 {[%clk 0:01:43.5]} 36... Qb1+ {[%clk 0:02:18.5]} 37. Ke2
{[%clk 0:01:41.9]} 37... Qc2+ {[%clk 0:02:12.4]} 38. Ke1 {[%clk 0:01:38.7]}
38... Ng3 {[%clk 0:02:03.1]} 39. Qd6+ {[%clk 0:01:32.3]} 39... Ke8 {[%clk
0:02:00.1]} 40. Qxg3 {[%clk 0:01:26.8]} 40... Qc3+ {[%clk 0:01:51]} 41. Ke2
{[%clk 0:01:23.6]} 41... Qc2+ {[%clk 0:01:47.2]} 42. Ke1 {[%clk 0:01:07.1]}
42... Qc1+ {[%clk 0:01:40.4]} 43. Ke2 {[%clk 0:01:05.9]} 43... Qc2+ {[%clk
0:01:39.6]} 44. Kf1 {[%clk 0:01:05.1]} 44... Qd1+ {[%clk 0:01:37.4]} 45. Kg2
{[%clk 0:01:04.3]} 45... Qe2+ {[%clk 0:01:33.2]} 46. Kh3 {[%clk 0:01:03.2]}
46... Qxe3 {[%clk 0:01:31.1]} 47. Qe5+ {[%clk 0:01:01.7]} 47... Qxe5 {[%clk
0:01:29.8]} 48. dxe5 {[%clk 0:01:00.5]} 48... d4 {[%clk 0:01:26.3]} 49. Kg3
{[%clk 0:00:58.9]} 49... d3 {[%clk 0:01:23.1]} 50. Kf2 {[%clk 0:00:57.9]} 50...
h5 {[%clk 0:01:21.7]} 51. Ke3 {[%clk 0:00:50.7]} 51... h4 {[%clk 0:01:19.8]} 52.
Kxd3 {[%clk 0:00:50.3]} 52... h3 {[%clk 0:01:19.1]} 53. Ke2 {[%clk 0:00:49.9]}
53... h2 {[%clk 0:01:18.2]} 54. Ke3 {[%clk 0:00:49.6]} 54... h1=Q {[%clk
0:01:17.1]} 0-1

[Event "Live Chess"]
[Site "Chess.com"]
[Date "2024.06.02"]
[Round "-"]
[White "IgorSchukin"]
[Black "Mangoalo"]
[Result "1-0"]
[WhiteElo "1762"]
[BlackElo "1074"]
[TimeControl "300"]
[EndTime "20:49:32 PDT"]
[Termination "IgorSchukin won by resignation"]

1. e4 {[%clk 0:04:56.7]} 1... c6 {[%clk 0:04:56]} 2. d4 {[%clk 0:04:55.1]} 2...
d5 {[%clk 0:04:54.8]} 3. Nc3 {[%clk 0:04:54.5]} 3... Nd7 {[%clk 0:04:46.1]} 4.
Nf3 {[%clk 0:04:52.3]} 4... f6 {[%clk 0:04:41.5]} 5. exd5 {[%clk 0:04:50.7]}
5... cxd5 {[%clk 0:04:34.9]} 6. Nxd5 {[%clk 0:04:49.5]} 6... Nb6 {[%clk
0:04:31.4]} 7. Nxb6 {[%clk 0:04:47.6]} 7... Qxb6 {[%clk 0:04:28.8]} 8. Bd3
{[%clk 0:04:45.6]} 8... f5 {[%clk 0:04:06.6]} 9. O-O {[%clk 0:04:42.4]} 9... Nf6
{[%clk 0:03:47.4]} 10. Bg5 {[%clk 0:04:31.8]} 10... g6 {[%clk 0:03:43.2]} 11.
Re1 {[%clk 0:04:27.9]} 11... Bg7 {[%clk 0:03:40.8]} 12. Qd2 {[%clk 0:04:25.4]}
12... e6 {[%clk 0:03:35.3]} 13. a4 {[%clk 0:04:13]} 13... Kf7 {[%clk 0:03:30.5]}
14. Bh6 {[%clk 0:04:01.4]} 14... Rf8 {[%clk 0:03:18.4]} 15. Bxg7 {[%clk
0:03:58.9]} 15... Kxg7 {[%clk 0:03:18.3]} 16. c3 {[%clk 0:03:53.8]} 16... Re8
{[%clk 0:03:16.7]} 17. Ne5 {[%clk 0:03:52.2]} 17... Nd5 {[%clk 0:03:08.3]} 18.
Bb5 {[%clk 0:03:47.2]} 18... Re7 {[%clk 0:03:05.2]} 19. Qg5 {[%clk 0:03:41.4]}
19... a6 {[%clk 0:02:58.3]} 20. c4 {[%clk 0:03:37.9]} 20... axb5 {[%clk
0:02:40]} 21. cxd5 {[%clk 0:03:36.6]} 21... Qd8 {[%clk 0:02:34.3]} 22. dxe6
{[%clk 0:03:32.1]} 22... Bxe6 {[%clk 0:02:32.2]} 23. axb5 {[%clk 0:03:28.1]}
23... Rxa1 {[%clk 0:02:29.4]} 24. Rxa1 {[%clk 0:03:26.5]} 24... Rc7 {[%clk
0:02:23.9]} 25. Qxd8 {[%clk 0:03:24.2]} 1-0

[Event "Live Chess"]
[Site "Chess.com"]
[Date "2024.06.02"]
[Round "-"]
[White "booktrunk"]
[Black "KeithArkell"]
[Result "0-1"]
[WhiteElo "1506"]
[BlackElo "2436"]
[TimeControl "300"]
[EndTime "20:50:15 PDT"]
[Termination "KeithArkell won by resignation"]

1. d4 {[%clk 0:04:57.4]} 1... e6 {[%clk 0:04:57]} 2. Nc3 {[%clk 0:04:48.5]} 2...
d5 {[%clk 0:04:48.3]} 3. Bf4 {[%clk 0:04:48.4]} 3... Bd6 {[%clk 0:04:36.6]} 4.
Bc1 {[%clk 0:04:48.3]} 4... Nf6 {[%clk 0:04:35.1]} 5. Bf4 {[%clk 0:04:48.2]}
5... Bxf4 {[%clk 0:04:33.7]} 6. e3 {[%clk 0:04:37.7]} 6... Bd6 {[%clk
0:04:30.9]} 7. Nb5 {[%clk 0:04:20.8]} 7... c6 {[%clk 0:04:18.6]} 8. Nxd6+ {[%clk
0:04:16.2]} 8... Qxd6 {[%clk 0:04:17.1]} 9. Nf3 {[%clk 0:04:06.8]} 9... c5
{[%clk 0:04:12.7]} 10. Be2 {[%clk 0:04:05.1]} 10... Nc6 {[%clk 0:04:10.9]} 11.
O-O {[%clk 0:03:49.4]} 11... cxd4 {[%clk 0:04:07.8]} 12. Nxd4 {[%clk 0:03:47.1]}
12... Nxd4 {[%clk 0:04:06.6]} 13. Qxd4 {[%clk 0:03:46.9]} 13... Qb6 {[%clk
0:04:05.6]} 14. Qa4+ {[%clk 0:03:45.3]} 14... Bd7 {[%clk 0:04:04.4]} 15. Qa3
{[%clk 0:03:43.4]} 15... Rc8 {[%clk 0:04:02]} 16. c3 {[%clk 0:03:40.9]} 16...
Qc5 {[%clk 0:04:00.9]} 17. Qxc5 {[%clk 0:03:36.6]} 17... Rxc5 {[%clk 0:03:59.4]}
18. Rac1 {[%clk 0:03:36.4]} 18... O-O {[%clk 0:03:58.1]} 19. b4 {[%clk
0:03:35.5]} 19... Rc7 {[%clk 0:03:57]} 20. Rc2 {[%clk 0:03:32.7]} 20... Rfc8
{[%clk 0:03:56.4]} 21. Rfc1 {[%clk 0:03:30.7]} 21... b5 {[%clk 0:03:55.3]} 22.
Bf3 {[%clk 0:03:25.5]} 22... e5 {[%clk 0:03:54.1]} 23. g3 {[%clk 0:03:23.4]}
23... Bf5 {[%clk 0:03:53.1]} 24. Rd2 {[%clk 0:03:18.5]} 24... Rxc3 {[%clk
0:03:51.7]} 25. Rxc3 {[%clk 0:03:17.6]} 25... Rxc3 {[%clk 0:03:50.7]} 26. Bxd5
{[%clk 0:03:15.9]} 26... Rc1+ {[%clk 0:03:49.5]} 27. Kg2 {[%clk 0:03:13.9]}
27... Nxd5 {[%clk 0:03:48.9]} 0-1

[Event "Live Chess"]
[Site "Chess.com"]
[Date "2024.06.02"]
[Round "-"]
[White "ShanthamGrarks"]
[Black "Delacorta"]
[Result "1-0"]
[WhiteElo "1923"]
[BlackElo "1533"]
[TimeControl "300"]
[EndTime "20:50:57 PDT"]
[Termination "ShanthamGrarks won by resignation"]

1. d4 {[%clk 0:04:52.5]} 1... e5 {[%clk 0:04:59.9]} 2. dxe5 {[%clk 0:04:50.1]}
2... Nc6 {[%clk 0:04:59.1]} 3. Nf3 {[%clk 0:04:49.5]} 3... Be7 {[%clk
0:04:54.8]} 4. Bf4 {[%clk 0:04:41.5]} 4... Nb4 {[%clk 0:04:36.5]} 5. c3 {[%clk
0:04:37.2]} 5... Nd5 {[%clk 0:04:35.4]} 6. Bg3 {[%clk 0:04:35.2]} 6... Bg5
{[%clk 0:04:27]} 7. e4 {[%clk 0:04:31.7]} 7... Nb6 {[%clk 0:04:20.5]} 8. h4
{[%clk 0:04:21.5]} 8... Bh6 {[%clk 0:04:14.5]} 9. Nd4 {[%clk 0:04:10.2]} 9...
Ne7 {[%clk 0:04:08.1]} 10. Nf5 {[%clk 0:04:05.4]} 10... Ng6 {[%clk 0:03:54.1]}
11. Nxh6 {[%clk 0:04:01.7]} 11... gxh6 {[%clk 0:03:53]} 12. Qh5 {[%clk
0:03:51.3]} 12... Qe7 {[%clk 0:03:33.4]} 13. Qxh6 {[%clk 0:03:47.2]} 13... Nc4
{[%clk 0:03:32.3]} 14. Qg5 {[%clk 0:03:36.6]} 14... Ncxe5 {[%clk 0:03:27.3]} 15.
Qxe7+ {[%clk 0:03:32.8]} 15... Kxe7 {[%clk 0:03:24.7]} 16. h5 {[%clk 0:03:29.2]}
1-0

[Event "Live Chess"]
[Site "Chess.com"]
[Date "2024.06.02"]
[Round "-"]
[White "Mikhail_Golubev"]
[Black "Dhaydon19"]
[Result "0-1"]
[WhiteElo "2520"]
[BlackElo "2678"]
[TimeControl "300"]
[EndTime "20:53:50 PDT"]
[Termination "Dhaydon19 won on time"]

1. e4 {[%clk 0:04:57.4]} 1... c6 {[%clk 0:04:56.6]} 2. d4 {[%clk 0:04:55.3]}
2... d5 {[%clk 0:04:56.3]} 3. Nc3 {[%clk 0:04:54.6]} 3... dxe4 {[%clk
0:04:55.4]} 4. Nxe4 {[%clk 0:04:54.5]} 4... Nf6 {[%clk 0:04:54.8]} 5. Ng3 {[%clk
0:04:52.4]} 5... g6 {[%clk 0:04:53.6]} 6. Nf3 {[%clk 0:04:49.8]} 6... Bg7 {[%clk
0:04:53.1]} 7. Bc4 {[%clk 0:04:48.2]} 7... O-O {[%clk 0:04:52.8]} 8. O-O {[%clk
0:04:46.8]} 8... Bg4 {[%clk 0:04:51.9]} 9. c3 {[%clk 0:04:46.1]} 9... Nbd7
{[%clk 0:04:50.4]} 10. Re1 {[%clk 0:04:44.6]} 10... Bxf3 {[%clk 0:04:47.7]} 11.
Qxf3 {[%clk 0:04:43.1]} 11... e6 {[%clk 0:04:47.6]} 12. Bf4 {[%clk 0:04:40.5]}
12... Qa5 {[%clk 0:04:45.3]} 13. Rad1 {[%clk 0:04:35.7]} 13... Rfe8 {[%clk
0:04:43.3]} 14. b4 {[%clk 0:04:26.4]} 14... Qb6 {[%clk 0:04:41.8]} 15. a4 {[%clk
0:04:13.7]} 15... a5 {[%clk 0:04:40.1]} 16. b5 {[%clk 0:04:13]} 16... Nd5 {[%clk
0:04:34.6]} 17. bxc6 {[%clk 0:04:03.6]} 17... bxc6 {[%clk 0:04:28.5]} 18. Rb1
{[%clk 0:03:40.9]} 18... Qd8 {[%clk 0:04:26.8]} 19. Ne4 {[%clk 0:03:28.3]} 19...
N7b6 {[%clk 0:04:21.2]} 20. Bg5 {[%clk 0:03:13.5]} 20... Qc7 {[%clk 0:04:17.2]}
21. Bxd5 {[%clk 0:02:52.8]} 21... cxd5 {[%clk 0:04:01.3]} 22. Nf6+ {[%clk
0:02:41.2]} 22... Bxf6 {[%clk 0:03:59.8]} 23. Bxf6 {[%clk 0:02:40.3]} 23... Nd7
{[%clk 0:03:58.9]} 24. Bg5 {[%clk 0:02:39.1]} 24... Rab8 {[%clk 0:03:54.7]} 25.
Bf4 {[%clk 0:02:32.3]} 25... Rxb1 {[%clk 0:03:51.7]} 26. Rxb1 {[%clk 0:02:32.1]}
26... Qc6 {[%clk 0:03:51]} 27. h4 {[%clk 0:02:23.1]} 27... Qxa4 {[%clk
0:03:46.6]} 28. h5 {[%clk 0:02:14.3]} 28... Qc6 {[%clk 0:03:31.7]} 29. hxg6
{[%clk 0:01:44.2]} 29... fxg6 {[%clk 0:03:29.5]} 30. Bh6 {[%clk 0:01:39.6]}
30... a4 {[%clk 0:03:24.4]} 31. c4 {[%clk 0:01:21]} 31... Qxc4 {[%clk 0:03:20]}
32. Rb7 {[%clk 0:01:19.6]} 32... Qc6 {[%clk 0:03:17.9]} 33. Ra7 {[%clk
0:01:18.7]} 33... Rc8 {[%clk 0:03:05.5]} 34. Qa3 {[%clk 0:01:08.4]} 34... Re8
{[%clk 0:02:42.8]} 35. Rxa4 {[%clk 0:01:03.9]} 35... Qc2 {[%clk 0:02:39.5]} 36.
f3 {[%clk 0:00:43]} 36... Qb1+ {[%clk 0:02:31.2]} 37. Kh2 {[%clk 0:00:37.5]}
37... Qf5 {[%clk 0:02:30.6]} 38. g4 {[%clk 0:00:22.2]} 38... Qf6 {[%clk
0:02:27.5]} 39. Ra7 {[%clk 0:00:13]} 39... Qh4+ {[%clk 0:02:23.6]} 40. Kg2
{[%clk 0:00:12.2]} 40... Qxh6 {[%clk 0:02:23.1]} 41. Rxd7 {[%clk 0:00:11.5]}
41... Qd2+ {[%clk 0:02:20.5]} 42. Kg3 {[%clk 0:00:09.4]} 42... Rf8 {[%clk
0:02:19.3]} 43. Qd6 {[%clk 0:00:06.2]} 43... Qe1+ {[%clk 0:02:14.5]} 44. Kg2
{[%clk 0:00:01.2]} 44... Qe3 {[%clk 0:02:13.6]} 0-1